[Event "Titled Tuesday Blitz February 21 Late 2023"]
[White "Jenkins, Drake"]
[Black "reevecanada"]
[WhiteFideId "2022397"]
[WhiteElo "2130"]
[BlackElo "2441"]
[Result "1-0"]
[Round "08"]
[TimeControl "180+2"]
[Date "2023.02.21"]
[WhiteClock "0:00:04"]
[BlackClock "0:00:23"]

1. Nf3 {[%clk 0:03:00]}  c5 {[%clk 0:02:59]} 2. c4 {[%clk 0:03:00]}  Nf6 {[%clk 0:02:59]} 3. d4 {[%clk 0:03:00]}  cxd4 {[%clk 0:02:58]} 4. Nxd4 {[%clk 0:03:01]}  g6 {[%clk 0:02:58]} 5. Nc3 {[%clk 0:03:02]}  Bg7 {[%clk 0:02:58]} 6. g3 {[%clk 0:03:02]}  O-O {[%clk 0:02:58]} 7. Bg2 {[%clk 0:03:03]}  d6 {[%clk 0:02:58]} 8. O-O {[%clk 0:03:02]}  Nbd7 {[%clk 0:02:58]} 9. b3 {[%clk 0:03:00]}  a6 {[%clk 0:02:58]} 10. Bb2 {[%clk 0:03:00]}  Qc7 {[%clk 0:02:58]} 11. Rc1 {[%clk 0:02:59]}  e6 {[%clk 0:02:56]} 12. Qd2 {[%clk 0:02:50]}  Rb8 {[%clk 0:02:51]} 13. Rfd1 {[%clk 0:02:50]}  Rd8 {[%clk 0:02:50]} 14. Nf3 {[%clk 0:02:15]}  Nc5 {[%clk 0:02:46]} 15. Ng5 {[%clk 0:02:10]}  b6 {[%clk 0:02:44]} 16. Nce4 {[%clk 0:02:05]}  Nfxe4 {[%clk 0:02:42]} 17. Nxe4 {[%clk 0:02:05]}  Bb7 {[%clk 0:02:40]} 18. Bxg7 {[%clk 0:01:29]}  Kxg7 {[%clk 0:02:36]} 19. Nxd6 {[%clk 0:01:29]}  Bxg2 {[%clk 0:02:33]} 20. Kxg2 {[%clk 0:01:29]}  e5 {[%clk 0:02:30]} 21. Qe3 {[%clk 0:01:06]}  f6 {[%clk 0:02:29]} 22. Ne4 {[%clk 0:00:59]}  Qc6 {[%clk 0:02:25]} 23. f3 {[%clk 0:00:53]}  Ne6 {[%clk 0:02:25]} 24. h4 {[%clk 0:00:43]}  Nd4 {[%clk 0:02:21]} 25. h5 {[%clk 0:00:38]}  f5 {[%clk 0:02:20]} 26. h6+ {[%clk 0:00:35]}  Kg8 {[%clk 0:02:19]} 27. Nc3 {[%clk 0:00:29]}  Qe6 {[%clk 0:02:14]} 28. Nd5 {[%clk 0:00:26]}  b5 {[%clk 0:02:08]} 29. Rxd4 {[%clk 0:00:25]}  bxc4 {[%clk 0:01:59]} 30. bxc4 {[%clk 0:00:25]}  Qd6 {[%clk 0:01:55]} 31. Rd2 {[%clk 0:00:21]}  Kf7 {[%clk 0:01:53]} 32. Rcc2 {[%clk 0:00:14]}  Qe6 {[%clk 0:01:49]} 33. Rb2 {[%clk 0:00:11]}  Rbc8 {[%clk 0:01:36]} 34. Rb7+ {[%clk 0:00:10]}  Kg8 {[%clk 0:01:35]} 35. Ne7+ {[%clk 0:00:09]}  Kh8 {[%clk 0:01:32]} 36. Nxc8 {[%clk 0:00:09]}  Rxc8 {[%clk 0:01:25]} 37. Rdd7 {[%clk 0:00:09]}  Kg8 {[%clk 0:01:04]} 38. Rg7+ {[%clk 0:00:07]}  Kf8 {[%clk 0:01:04]} 39. Rxh7 {[%clk 0:00:07]}  Qf6 {[%clk 0:00:57]} 40. c5 {[%clk 0:00:06]}  f4 {[%clk 0:00:55]} 41. gxf4 {[%clk 0:00:03]}  exf4 {[%clk 0:00:35]} 42. Qxf4 {[%clk 0:00:03]}  Ke8 {[%clk 0:00:22]} 43. Qxf6 {[%clk 0:00:02]}  Rc7 {[%clk 0:00:23]} 44. Rh8+ {[%clk 0:00:02]}  Kd7 {[%clk 0:00:22]} 45. Rxc7+ {[%clk 0:00:03]}  Kxc7 {[%clk 0:00:23]} 46. Rh7+ {[%clk 0:00:04]}  Kc8 {[%clk 0:00:23]} 47. Qh8# {[%clk 0:00:04]} 1-0


[Site "https://www.chess.com"]

[Event "Titled Tuesday Blitz February 21 Late 2023"]
[White "Ward, Ieuan C"]
[Black "sissahungrychess"]
[WhiteFideId "406627"]
[WhiteElo "2028"]
[BlackElo "2453"]
[Result "1-0"]
[Round "08"]
[TimeControl "180+2"]
[Date "2023.02.21"]
[WhiteClock "0:00:15"]
[BlackClock "0:00:01"]

1. d4 {[%clk 0:03:00]}  Nf6 {[%clk 0:02:59]} 2. c4 {[%clk 0:03:01]}  e6 {[%clk 0:03:00]} 3. Nf3 {[%clk 0:03:00]}  d5 {[%clk 0:03:01]} 4. Nc3 {[%clk 0:03:00]}  Be7 {[%clk 0:03:01]} 5. Bg5 {[%clk 0:03:00]}  O-O {[%clk 0:03:01]} 6. e3 {[%clk 0:03:01]}  a6 {[%clk 0:03:02]} 7. cxd5 {[%clk 0:02:58]}  exd5 {[%clk 0:03:00]} 8. Bxf6 {[%clk 0:02:58]}  Bxf6 {[%clk 0:03:00]} 9. Bd3 {[%clk 0:02:58]}  c6 {[%clk 0:03:00]} 10. O-O {[%clk 0:02:58]}  Nd7 {[%clk 0:02:54]} 11. b4 {[%clk 0:02:58]}  Re8 {[%clk 0:02:54]} 12. Rc1 {[%clk 0:02:56]}  Be7 {[%clk 0:02:47]} 13. Qb3 {[%clk 0:02:53]}  Bd6 {[%clk 0:02:41]} 14. a4 {[%clk 0:02:49]}  Nf6 {[%clk 0:02:23]} 15. h3 {[%clk 0:02:37]}  Ne4 {[%clk 0:01:57]} 16. b5 {[%clk 0:02:26]}  Nxc3 {[%clk 0:01:45]} 17. Qxc3 {[%clk 0:02:18]}  cxb5 {[%clk 0:01:42]} 18. axb5 {[%clk 0:02:17]}  a5 {[%clk 0:01:43]} 19. Bb1 {[%clk 0:01:51]}  Bd7 {[%clk 0:01:32]} 20. Qd3 {[%clk 0:01:45]}  g6 {[%clk 0:01:31]} 21. Rc5 {[%clk 0:01:40]}  Bxc5 {[%clk 0:01:14]} 22. dxc5 {[%clk 0:01:40]}  Bf5 {[%clk 0:01:11]} 23. Qc3 {[%clk 0:01:32]}  Be4 {[%clk 0:01:06]} 24. Bxe4 {[%clk 0:01:19]}  dxe4 {[%clk 0:01:07]} 25. Nd4 {[%clk 0:01:15]}  a4 {[%clk 0:00:59]} 26. c6 {[%clk 0:01:09]}  bxc6 {[%clk 0:00:58]} 27. bxc6 {[%clk 0:01:09]}  Qa5 {[%clk 0:00:55]} 28. Qa3 {[%clk 0:00:50]}  Reb8 {[%clk 0:00:46]} 29. Rc1 {[%clk 0:00:48]}  Qc7 {[%clk 0:00:33]} 30. g3 {[%clk 0:00:44]}  Qb6 {[%clk 0:00:14]} 31. Kg2 {[%clk 0:00:30]}  h5 {[%clk 0:00:06]} 32. c7 {[%clk 0:00:22]}  Rc8 {[%clk 0:00:06]} 33. Qe7 {[%clk 0:00:22]}  a3 {[%clk 0:00:03]} 34. Rc6 {[%clk 0:00:19]}  Qb2 {[%clk 0:00:01]} 35. Rf6 {[%clk 0:00:15]} 1-0


[Site "https://www.chess.com"]

[Event "Titled Tuesday Blitz February 21 Late 2023"]
[White "Miszler, Levente"]
[Black "De Souza, Cristiano Gomes"]
[WhiteFideId "763276"]
[BlackFideId "2151758"]
[WhiteElo "2271"]
[BlackElo "2018"]
[Result "1-0"]
[Round "08"]
[TimeControl "180+2"]
[Date "2023.02.21"]
[WhiteClock "0:00:30"]
[BlackClock "0:00:05"]

1. Nf3 {[%clk 0:03:00]}  Nf6 {[%clk 0:02:59]} 2. c4 {[%clk 0:02:58]}  g6 {[%clk 0:03:00]} 3. g3 {[%clk 0:02:58]}  Bg7 {[%clk 0:03:00]} 4. Bg2 {[%clk 0:02:59]}  O-O {[%clk 0:03:01]} 5. O-O {[%clk 0:02:59]}  d6 {[%clk 0:03:02]} 6. Nc3 {[%clk 0:02:59]}  c5 {[%clk 0:03:02]} 7. d3 {[%clk 0:02:59]}  Nc6 {[%clk 0:03:03]} 8. a3 {[%clk 0:03:00]}  Ne8 {[%clk 0:03:03]} 9. Rb1 {[%clk 0:03:00]}  Nc7 {[%clk 0:03:04]} 10. Bd2 {[%clk 0:03:00]}  Ne6 {[%clk 0:03:04]} 11. b4 {[%clk 0:03:01]}  cxb4 {[%clk 0:03:04]} 12. axb4 {[%clk 0:03:01]}  Ned4 {[%clk 0:03:03]} 13. b5 {[%clk 0:02:53]}  Nxf3+ {[%clk 0:03:02]} 14. Bxf3 {[%clk 0:02:54]}  Nd4 {[%clk 0:03:02]} 15. Bg2 {[%clk 0:02:55]}  Ne6 {[%clk 0:02:54]} 16. Nd5 {[%clk 0:02:53]}  Nc5 {[%clk 0:02:49]} 17. b6 {[%clk 0:02:51]}  axb6 {[%clk 0:02:36]} 18. Nxb6 {[%clk 0:02:51]}  Ra6 {[%clk 0:02:35]} 19. Nxc8 {[%clk 0:02:49]}  Qxc8 {[%clk 0:02:35]} 20. Be3 {[%clk 0:02:47]}  b6 {[%clk 0:02:28]} 21. Qc2 {[%clk 0:02:28]}  Qc7 {[%clk 0:02:27]} 22. Rfc1 {[%clk 0:02:27]}  Rb8 {[%clk 0:02:22]} 23. Rb5 {[%clk 0:02:26]}  Ra5 {[%clk 0:02:17]} 24. Rcb1 {[%clk 0:02:25]}  Rxb5 {[%clk 0:02:15]} 25. Rxb5 {[%clk 0:02:25]}  e5 {[%clk 0:02:13]} 26. Qb1 {[%clk 0:02:19]}  Bf8 {[%clk 0:02:06]} 27. Bd2 {[%clk 0:02:16]}  Be7 {[%clk 0:02:02]} 28. Bd5 {[%clk 0:02:13]}  Bd8 {[%clk 0:02:01]} 29. Qa2 {[%clk 0:02:09]}  Ne6 {[%clk 0:01:59]} 30. Be3 {[%clk 0:02:02]}  Nd4 {[%clk 0:01:48]} 31. Bxd4 {[%clk 0:02:01]}  exd4 {[%clk 0:01:47]} 32. Qa1 {[%clk 0:01:50]}  Bf6 {[%clk 0:01:46]} 33. e3 {[%clk 0:01:50]}  Qe7 {[%clk 0:01:34]} 34. exd4 {[%clk 0:01:50]}  Kg7 {[%clk 0:01:30]} 35. Be4 {[%clk 0:01:48]}  h5 {[%clk 0:01:23]} 36. h4 {[%clk 0:01:45]}  Qd7 {[%clk 0:01:17]} 37. Kg2 {[%clk 0:01:41]}  Qc7 {[%clk 0:00:58]} 38. Rd5 {[%clk 0:01:39]}  Re8 {[%clk 0:00:45]} 39. Qa3 {[%clk 0:01:37]}  Re6 {[%clk 0:00:45]} 40. Qa8 {[%clk 0:01:28]}  Qe7 {[%clk 0:00:42]} 41. Kf3 {[%clk 0:01:11]}  Bxh4 {[%clk 0:00:38]} 42. gxh4 {[%clk 0:01:10]}  Qxh4 {[%clk 0:00:39]} 43. Qa2 {[%clk 0:00:58]}  Qg4+ {[%clk 0:00:38]} 44. Ke3 {[%clk 0:00:59]}  f5 {[%clk 0:00:37]} 45. Qa7+ {[%clk 0:00:57]}  Kh6 {[%clk 0:00:37]} 46. Qb8 {[%clk 0:00:54]}  Qh3+ {[%clk 0:00:17]} 47. Kd2 {[%clk 0:00:52]}  Qh2 {[%clk 0:00:13]} 48. Qh8+ {[%clk 0:00:43]}  Kg5 {[%clk 0:00:13]} 49. Qg8 {[%clk 0:00:40]}  Qxf2+ {[%clk 0:00:09]} 50. Kc3 {[%clk 0:00:40]}  Qe1+ {[%clk 0:00:08]} 51. Kb2 {[%clk 0:00:34]}  Qd2+ {[%clk 0:00:07]} 52. Kb3 {[%clk 0:00:34]}  Rxe4 {[%clk 0:00:07]} 53. dxe4 {[%clk 0:00:32]}  Qd3+ {[%clk 0:00:07]} 54. Kb4 {[%clk 0:00:31]}  Qb1+ {[%clk 0:00:05]} 55. Ka4 {[%clk 0:00:30]} 1-0


[Site "https://www.chess.com"]

[Event "Titled Tuesday Blitz February 21 Late 2023"]
[White "Adewumi, Tanitoluwa"]
[Black "Fernandez Garcia, Gumersindo"]
[WhiteFideId "30966396"]
[BlackFideId "24516740"]
[WhiteElo "2283"]
[BlackElo "2160"]
[Result "1-0"]
[Round "08"]
[TimeControl "180+2"]
[Date "2023.02.21"]
[WhiteClock "0:02:04"]
[BlackClock "0:01:09"]

1. e4 {[%clk 0:03:00]}  d6 {[%clk 0:02:58]} 2. d4 {[%clk 0:03:00]}  Nf6 {[%clk 0:02:58]} 3. Nc3 {[%clk 0:02:57]}  e5 {[%clk 0:02:58]} 4. Nf3 {[%clk 0:02:55]}  Nbd7 {[%clk 0:02:58]} 5. Bc4 {[%clk 0:02:53]}  Be7 {[%clk 0:02:58]} 6. O-O {[%clk 0:02:53]}  O-O {[%clk 0:02:59]} 7. Re1 {[%clk 0:02:50]}  c6 {[%clk 0:02:59]} 8. a4 {[%clk 0:02:50]}  h6 {[%clk 0:02:57]} 9. Ba2 {[%clk 0:02:48]}  Qc7 {[%clk 0:02:57]} 10. h3 {[%clk 0:02:44]}  a5 {[%clk 0:02:57]} 11. Be3 {[%clk 0:02:43]}  Rd8 {[%clk 0:02:44]} 12. Qe2 {[%clk 0:02:39]}  Nf8 {[%clk 0:02:40]} 13. Rad1 {[%clk 0:02:36]}  Ng6 {[%clk 0:02:35]} 14. dxe5 {[%clk 0:02:26]}  dxe5 {[%clk 0:02:30]} 15. Rxd8+ {[%clk 0:02:25]}  Bxd8 {[%clk 0:02:28]} 16. Rd1 {[%clk 0:02:24]}  Be7 {[%clk 0:02:19]} 17. Nd2 {[%clk 0:02:17]}  Nf4 {[%clk 0:02:10]} 18. Bxf4 {[%clk 0:02:11]}  exf4 {[%clk 0:02:11]} 19. e5 {[%clk 0:02:12]}  Nd5 {[%clk 0:01:54]} 20. Bxd5 {[%clk 0:02:10]}  cxd5 {[%clk 0:01:55]} 21. Nxd5 {[%clk 0:02:11]}  Qd8 {[%clk 0:01:41]} 22. Ne4 {[%clk 0:02:09]}  Qf8 {[%clk 0:01:38]} 23. Nd6 {[%clk 0:02:06]}  Bxd6 {[%clk 0:01:09]} 24. exd6 {[%clk 0:02:07]}  Qxd6 {[%clk 0:01:09]} 25. Ne7+ {[%clk 0:02:04]} 1-0


[Site "https://www.chess.com"]

[Event "Titled Tuesday Blitz February 21 Late 2023"]
[White "Huang, Alex"]
[Black "Novikov, Evgenij"]
[WhiteFideId "4302508"]
[BlackFideId "4125380"]
[WhiteElo "2009"]
[BlackElo "2276"]
[Result "0-1"]
[Round "08"]
[TimeControl "180+2"]
[Date "2023.02.21"]
[WhiteClock "0:00:03"]
[BlackClock "0:00:05"]

1. d4 {[%clk 0:03:00]}  d5 {[%clk 0:02:58]} 2. Bf4 {[%clk 0:03:00]}  c5 {[%clk 0:02:58]} 3. e3 {[%clk 0:03:00]}  Nc6 {[%clk 0:02:57]} 4. c3 {[%clk 0:03:00]}  Nf6 {[%clk 0:02:48]} 5. Nd2 {[%clk 0:03:01]}  Qb6 {[%clk 0:02:43]} 6. Qb3 {[%clk 0:03:00]}  c4 {[%clk 0:02:43]} 7. Qc2 {[%clk 0:03:00]}  g6 {[%clk 0:02:37]} 8. Ngf3 {[%clk 0:02:46]}  Bf5 {[%clk 0:02:36]} 9. Qc1 {[%clk 0:02:46]}  Qd8 {[%clk 0:02:29]} 10. Be2 {[%clk 0:02:41]}  Bg7 {[%clk 0:02:28]} 11. Nh4 {[%clk 0:02:41]}  Be6 {[%clk 0:02:22]} 12. O-O {[%clk 0:02:41]}  h6 {[%clk 0:02:20]} 13. Nhf3 {[%clk 0:02:40]}  O-O {[%clk 0:02:15]} 14. h3 {[%clk 0:02:37]}  b5 {[%clk 0:02:12]} 15. Ne5 {[%clk 0:02:30]}  Qb6 {[%clk 0:02:03]} 16. Bf3 {[%clk 0:02:28]}  Nxe5 {[%clk 0:01:47]} 17. Bxe5 {[%clk 0:02:27]}  Rfd8 {[%clk 0:01:29]} 18. e4 {[%clk 0:02:25]}  dxe4 {[%clk 0:01:24]} 19. Nxe4 {[%clk 0:02:10]}  Nxe4 {[%clk 0:01:24]} 20. Bxg7 {[%clk 0:02:03]}  Kxg7 {[%clk 0:01:19]} 21. Bxe4 {[%clk 0:02:02]}  Rab8 {[%clk 0:01:11]} 22. a3 {[%clk 0:01:59]}  a5 {[%clk 0:01:11]} 23. Qe3 {[%clk 0:01:29]}  Rd6 {[%clk 0:01:05]} 24. Rfd1 {[%clk 0:01:26]}  Rbd8 {[%clk 0:01:01]} 25. Rd2 {[%clk 0:01:18]}  Qc7 {[%clk 0:00:50]} 26. Qg3 {[%clk 0:01:16]}  R6d7 {[%clk 0:00:45]} 27. Qxc7 {[%clk 0:00:59]}  Rxc7 {[%clk 0:00:46]} 28. Re1 {[%clk 0:00:56]}  Bd5 {[%clk 0:00:43]} 29. Bxd5 {[%clk 0:00:55]}  Rxd5 {[%clk 0:00:44]} 30. Re4 {[%clk 0:00:54]}  Kf6 {[%clk 0:00:37]} 31. f4 {[%clk 0:00:51]}  e6 {[%clk 0:00:34]} 32. Kf2 {[%clk 0:00:51]}  b4 {[%clk 0:00:32]} 33. axb4 {[%clk 0:00:48]}  axb4 {[%clk 0:00:33]} 34. g4 {[%clk 0:00:27]}  Rb7 {[%clk 0:00:32]} 35. Rc2 {[%clk 0:00:26]}  Ra5 {[%clk 0:00:28]} 36. Re5 {[%clk 0:00:21]}  Ra2 {[%clk 0:00:27]} 37. g5+ {[%clk 0:00:19]}  hxg5 {[%clk 0:00:26]} 38. fxg5+ {[%clk 0:00:19]}  Ke7 {[%clk 0:00:26]} 39. cxb4 {[%clk 0:00:20]}  Rxb4 {[%clk 0:00:26]} 40. Rc5 {[%clk 0:00:20]}  Rbxb2 {[%clk 0:00:25]} 41. Rxb2 {[%clk 0:00:16]}  Rxb2+ {[%clk 0:00:25]} 42. Ke3 {[%clk 0:00:17]}  Rc2 {[%clk 0:00:20]} 43. Rc7+ {[%clk 0:00:17]}  Kf8 {[%clk 0:00:18]} 44. Rc5 {[%clk 0:00:15]}  Ke7 {[%clk 0:00:13]} 45. Rc7+ {[%clk 0:00:15]}  Ke8 {[%clk 0:00:13]} 46. Rc5 {[%clk 0:00:15]}  Rh2 {[%clk 0:00:10]} 47. Rxc4 {[%clk 0:00:14]}  Rxh3+ {[%clk 0:00:10]} 48. Kf4 {[%clk 0:00:14]}  Rh1 {[%clk 0:00:08]} 49. Rc7 {[%clk 0:00:14]}  Rf1+ {[%clk 0:00:07]} 50. Kg4 {[%clk 0:00:13]}  Rf5 {[%clk 0:00:08]} 51. Ra7 {[%clk 0:00:13]}  Kd8 {[%clk 0:00:07]} 52. Kh4 {[%clk 0:00:11]}  Ke8 {[%clk 0:00:07]} 53. Kg4 {[%clk 0:00:11]}  Kf8 {[%clk 0:00:07]} 54. Rb7 {[%clk 0:00:12]}  Rd5 {[%clk 0:00:07]} 55. Rb4 {[%clk 0:00:12]}  Ke7 {[%clk 0:00:08]} 56. Kf4 {[%clk 0:00:11]}  Kd6 {[%clk 0:00:06]} 57. Rb6+ {[%clk 0:00:11]}  Kc7 {[%clk 0:00:06]} 58. Rb4 {[%clk 0:00:12]}  Kc6 {[%clk 0:00:07]} 59. Kg4 {[%clk 0:00:11]}  Rf5 {[%clk 0:00:06]} 60. Ra4 {[%clk 0:00:09]}  Kd5 {[%clk 0:00:06]} 61. Rb4 {[%clk 0:00:09]}  Ke4 {[%clk 0:00:06]} 62. Ra4 {[%clk 0:00:08]}  Ke3 {[%clk 0:00:06]} 63. Rb4 {[%clk 0:00:08]}  Rf4+ {[%clk 0:00:06]} 64. Kg3 {[%clk 0:00:07]}  Rxd4 {[%clk 0:00:07]} 65. Rb7 {[%clk 0:00:07]}  Rd5 {[%clk 0:00:05]} 66. Rxf7 {[%clk 0:00:07]}  Rxg5+ {[%clk 0:00:05]} 67. Kh4 {[%clk 0:00:08]}  Rh5+ {[%clk 0:00:05]} 68. Kg4 {[%clk 0:00:07]}  Rf5 {[%clk 0:00:04]} 69. Re7 {[%clk 0:00:08]}  Re5 {[%clk 0:00:04]} 70. Rg7 {[%clk 0:00:07]}  g5 {[%clk 0:00:04]} 71. Kg3 {[%clk 0:00:04]}  Ke4 {[%clk 0:00:04]} 72. Rg8 {[%clk 0:00:04]}  Rf5 {[%clk 0:00:04]} 73. Kg4 {[%clk 0:00:04]}  e5 {[%clk 0:00:04]} 74. Rb8 {[%clk 0:00:03]}  Rf4+ {[%clk 0:00:04]} 75. Kg3 {[%clk 0:00:04]}  Rf1 {[%clk 0:00:05]} 76. Rb4+ {[%clk 0:00:04]}  Kf5 {[%clk 0:00:05]} 77. Kg2 {[%clk 0:00:04]}  Rf4 {[%clk 0:00:04]} 78. Rb8 {[%clk 0:00:05]}  g4 {[%clk 0:00:05]} 79. Rf8+ {[%clk 0:00:04]}  Ke4 {[%clk 0:00:05]} 80. Rc8 {[%clk 0:00:04]}  Rf3 {[%clk 0:00:05]} 81. Rc4+ {[%clk 0:00:04]}  Kf5 {[%clk 0:00:05]} 82. Rc5 {[%clk 0:00:04]}  Kf4 {[%clk 0:00:05]} 83. Rc4+ {[%clk 0:00:05]}  e4 {[%clk 0:00:05]} 84. Ra4 {[%clk 0:00:05]}  g3 {[%clk 0:00:05]} 85. Rb4 {[%clk 0:00:03]}  Rf2+ {[%clk 0:00:05]} 86. Kg1 {[%clk 0:00:03]}  Kf3 {[%clk 0:00:05]} 87. Rb3+ {[%clk 0:00:03]}  e3 {[%clk 0:00:06]} 88. Ra3 {[%clk 0:00:03]}  Rc2 {[%clk 0:00:05]} 0-1


[Site "https://www.chess.com"]

[Event "Titled Tuesday Blitz February 21 Late 2023"]
[White "Karwowski, Kacper"]
[Black "Stanisz, Patryk"]
[WhiteFideId "1126032"]
[BlackFideId "1123106"]
[WhiteElo "2164"]
[BlackElo "2161"]
[Result "0-1"]
[Round "08"]
[TimeControl "180+2"]
[Date "2023.02.21"]
[WhiteClock "0:00:01"]
[BlackClock "0:00:10"]

1. e4 {[%clk 0:03:00]}  c5 {[%clk 0:02:59]} 2. Nf3 {[%clk 0:03:00]}  Nc6 {[%clk 0:02:59]} 3. Bb5 {[%clk 0:03:00]}  g6 {[%clk 0:02:58]} 4. Bxc6 {[%clk 0:03:00]}  dxc6 {[%clk 0:02:59]} 5. d3 {[%clk 0:03:01]}  Bg7 {[%clk 0:02:59]} 6. O-O {[%clk 0:02:59]}  Nf6 {[%clk 0:03:00]} 7. Nbd2 {[%clk 0:02:59]}  Nd7 {[%clk 0:02:58]} 8. Rb1 {[%clk 0:02:55]}  e5 {[%clk 0:02:55]} 9. Nc4 {[%clk 0:02:44]}  Qe7 {[%clk 0:02:54]} 10. Bg5 {[%clk 0:02:39]}  f6 {[%clk 0:02:53]} 11. Be3 {[%clk 0:02:37]}  Nf8 {[%clk 0:02:42]} 12. a3 {[%clk 0:02:19]}  b5 {[%clk 0:02:29]} 13. Na5 {[%clk 0:02:14]}  Bd7 {[%clk 0:02:24]} 14. b4 {[%clk 0:02:13]}  Ne6 {[%clk 0:02:11]} 15. c3 {[%clk 0:01:41]}  O-O {[%clk 0:02:09]} 16. Qc2 {[%clk 0:01:31]}  f5 {[%clk 0:02:03]} 17. exf5 {[%clk 0:01:29]}  gxf5 {[%clk 0:02:03]} 18. Rfe1 {[%clk 0:01:02]}  Kh8 {[%clk 0:01:51]} 19. Nb3 {[%clk 0:00:39]}  cxb4 {[%clk 0:01:41]} 20. axb4 {[%clk 0:00:39]}  f4 {[%clk 0:01:41]} 21. Bc5 {[%clk 0:00:39]}  Nxc5 {[%clk 0:01:40]} 22. Nxc5 {[%clk 0:00:40]}  Bg4 {[%clk 0:01:32]} 23. Nd2 {[%clk 0:00:39]}  f3 {[%clk 0:01:31]} 24. g3 {[%clk 0:00:35]}  Qf7 {[%clk 0:01:16]} 25. h4 {[%clk 0:00:24]}  a5 {[%clk 0:01:12]} 26. Nde4 {[%clk 0:00:19]}  axb4 {[%clk 0:01:11]} 27. cxb4 {[%clk 0:00:20]}  Ra2 {[%clk 0:00:50]} 28. Rb2 {[%clk 0:00:17]}  Rfa8 {[%clk 0:00:48]} 29. Reb1 {[%clk 0:00:17]}  Bc8 {[%clk 0:00:45]} 30. Qd1 {[%clk 0:00:16]}  Rxb2 {[%clk 0:00:42]} 31. Rxb2 {[%clk 0:00:16]}  Qf5 {[%clk 0:00:41]} 32. Qf1 {[%clk 0:00:07]}  Bf8 {[%clk 0:00:26]} 33. Rd2 {[%clk 0:00:06]}  Be7 {[%clk 0:00:22]} 34. Rc2 {[%clk 0:00:04]}  Be6 {[%clk 0:00:15]} 35. Kh2 {[%clk 0:00:03]}  Bxh4 {[%clk 0:00:13]} 36. gxh4 {[%clk 0:00:03]}  Rg8 {[%clk 0:00:14]} 37. Ng3 {[%clk 0:00:01]}  Qg4 {[%clk 0:00:13]} 38. h5 {[%clk 0:00:01]}  Qh4+ {[%clk 0:00:12]} 39. Kg1 {[%clk 0:00:02]}  Bh3 {[%clk 0:00:11]} 40. Qe1 {[%clk 0:00:02]}  Bg2 {[%clk 0:00:11]} 41. Qxe5+ {[%clk 0:00:01]}  Rg7 {[%clk 0:00:10]} 0-1


[Site "https://www.chess.com"]

[Event "Titled Tuesday Blitz February 21 Late 2023"]
[White "Leonte, Sebastian-Marian"]
[Black "ArturoCaceres"]
[WhiteFideId "1268767"]
[WhiteElo "1279"]
[BlackElo "2405"]
[Result "1-0"]
[Round "08"]
[TimeControl "180+2"]
[Date "2023.02.21"]
[WhiteClock "0:00:03"]
[BlackClock "0:00:03"]

1. e4 {[%clk 0:03:00]}  d5 {[%clk 0:03:00]} 2. exd5 {[%clk 0:03:00]}  Nf6 {[%clk 0:02:59]} 3. Nf3 {[%clk 0:02:59]}  c6 {[%clk 0:03:00]} 4. dxc6 {[%clk 0:02:56]}  Nxc6 {[%clk 0:03:01]} 5. Nc3 {[%clk 0:02:56]}  Bf5 {[%clk 0:02:59]} 6. Bc4 {[%clk 0:02:46]}  e5 {[%clk 0:02:57]} 7. O-O {[%clk 0:02:42]}  Bd6 {[%clk 0:02:57]} 8. d3 {[%clk 0:02:41]}  O-O {[%clk 0:02:54]} 9. Bg5 {[%clk 0:02:41]}  h6 {[%clk 0:02:51]} 10. Bh4 {[%clk 0:02:37]}  Bb8 {[%clk 0:01:56]} 11. Nd5 {[%clk 0:02:25]}  g5 {[%clk 0:01:55]} 12. Nxf6+ {[%clk 0:02:15]}  Qxf6 {[%clk 0:01:55]} 13. Bg3 {[%clk 0:02:16]}  Bg4 {[%clk 0:01:51]} 14. h3 {[%clk 0:02:08]}  Bh5 {[%clk 0:01:30]} 15. Bd5 {[%clk 0:02:04]}  Bc7 {[%clk 0:01:18]} 16. c3 {[%clk 0:01:55]}  Rad8 {[%clk 0:01:05]} 17. Be4 {[%clk 0:01:52]}  Bb6 {[%clk 0:01:02]} 18. Qc2 {[%clk 0:01:42]}  Rc8 {[%clk 0:01:00]} 19. Bxc6 {[%clk 0:01:32]}  Qxc6 {[%clk 0:01:01]} 20. Nxe5 {[%clk 0:01:30]}  Qd5 {[%clk 0:01:01]} 21. Qb3 {[%clk 0:01:22]}  Qa5 {[%clk 0:00:47]} 22. Nc4 {[%clk 0:01:15]}  Qf5 {[%clk 0:00:44]} 23. Nd6 {[%clk 0:01:09]}  Qxd3 {[%clk 0:00:43]} 24. Nxc8 {[%clk 0:01:05]}  Rxc8 {[%clk 0:00:44]} 25. Kh2 {[%clk 0:01:01]}  Be2 {[%clk 0:00:38]} 26. Rfe1 {[%clk 0:00:58]}  Re8 {[%clk 0:00:38]} 27. Rac1 {[%clk 0:00:56]}  h5 {[%clk 0:00:32]} 28. Qc2 {[%clk 0:00:54]}  Qxc2 {[%clk 0:00:14]} 29. Rxc2 {[%clk 0:00:55]}  Bb5 {[%clk 0:00:15]} 30. Rxe8+ {[%clk 0:00:54]}  Bxe8 {[%clk 0:00:16]} 31. Be5 {[%clk 0:00:40]}  Bc6 {[%clk 0:00:15]} 32. Bd4 {[%clk 0:00:38]}  Bc7+ {[%clk 0:00:15]} 33. Kg1 {[%clk 0:00:34]}  a6 {[%clk 0:00:15]} 34. Re2 {[%clk 0:00:33]}  Bd6 {[%clk 0:00:16]} 35. b3 {[%clk 0:00:29]}  Kh7 {[%clk 0:00:16]} 36. c4 {[%clk 0:00:29]}  Kg6 {[%clk 0:00:16]} 37. c5 {[%clk 0:00:29]}  Bf4 {[%clk 0:00:17]} 38. g3 {[%clk 0:00:19]}  Bb8 {[%clk 0:00:16]} 39. Be5 {[%clk 0:00:18]}  Ba7 {[%clk 0:00:16]} 40. Bd6 {[%clk 0:00:18]}  a5 {[%clk 0:00:16]} 41. Re7 {[%clk 0:00:18]}  h4 {[%clk 0:00:14]} 42. gxh4 {[%clk 0:00:17]}  gxh4 {[%clk 0:00:14]} 43. a3 {[%clk 0:00:17]}  Bd5 {[%clk 0:00:14]} 44. b4 {[%clk 0:00:17]}  axb4 {[%clk 0:00:14]} 45. axb4 {[%clk 0:00:18]}  Bc6 {[%clk 0:00:14]} 46. Rc7 {[%clk 0:00:18]}  Bb8 {[%clk 0:00:08]} 47. Re7 {[%clk 0:00:18]}  Bxd6 {[%clk 0:00:09]} 48. cxd6 {[%clk 0:00:18]}  Kf6 {[%clk 0:00:09]} 49. Rc7 {[%clk 0:00:18]}  Ke6 {[%clk 0:00:09]} 50. d7 {[%clk 0:00:11]}  Bxd7 {[%clk 0:00:07]} 51. Rxb7 {[%clk 0:00:10]}  Kd6 {[%clk 0:00:07]} 52. Rb6+ {[%clk 0:00:10]}  Kd5 {[%clk 0:00:06]} 53. Rh6 {[%clk 0:00:10]}  Bxh3 {[%clk 0:00:06]} 54. Rxh4 {[%clk 0:00:10]}  Be6 {[%clk 0:00:07]} 55. Kh2 {[%clk 0:00:09]}  Kc6 {[%clk 0:00:06]} 56. Kg3 {[%clk 0:00:09]}  Kb5 {[%clk 0:00:06]} 57. Rd4 {[%clk 0:00:08]}  Bc4 {[%clk 0:00:04]} 58. Kf4 {[%clk 0:00:08]}  Kxb4 {[%clk 0:00:05]} 59. Ke5 {[%clk 0:00:08]}  Kc5 {[%clk 0:00:05]} 60. Rxc4+ {[%clk 0:00:05]}  Kxc4 {[%clk 0:00:06]} 61. f4 {[%clk 0:00:05]}  Kd3 {[%clk 0:00:02]} 62. f5 {[%clk 0:00:02]}  Ke3 {[%clk 0:00:03]} 63. f6 {[%clk 0:00:02]}  Kf3 {[%clk 0:00:03]} 64. Kd6 {[%clk 0:00:03]}  Kf4 {[%clk 0:00:03]} 65. Ke7 {[%clk 0:00:03]} 1-0


[Site "https://www.chess.com"]